[Event "Singapore Open-A 2024"]
[Site "Singapore"]
[Date "2024.11.30"]
[Round "3.1"]
[White "Tippa, Aswath Srisai"]
[Black "Murzin, Volodar"]
[Result "1/2-1/2"]
[ECO "D11"]
[WhiteElo "1615"]
[BlackElo "2664"]
[Annotator "TA"]
[PlyCount "174"]
[EventDate "2024.11.29"]
[EventType "swiss"]
[EventCountry "SIN"]
[SourceTitle "playchess.com"]
[Source "ChessBase"]
[SourceQuality "1"]
[TimeControl "5400+30"]

{[%evp 38,174,60,37,55,59,60,50,47,39,41,41,42,45,47,47,46,40,53,0,45,46,50,1,27,6,29,0,0,0,2,0,0,0,45,48,57,32,70,28,28,23,12,20,27,3,8,0,0,0,0,0,54,0,24,31,65,65,72,72,68,58,66,62,68,57,54,56,72,77,64,60,76,8,8,8,8,8,18,19,8,8,8,8,12,12,100,100,100,8,8,0,100,100,100,100,100,8,8,8,100,0,8,0,100,100,100,100,100,100,100,100,100,100,100,100,100,100,100,100,100,100,100,8,8,8,8,0,8,0,0,0,8,8,8,8,8,8,8]} 1. d4 {[%emt 0:01:55]} d5 {[%emt 0:00:34]} 2. c4 {[%emt 0:00:18]} c6 {[%emt 0:00:08]} 3. Nf3 {[%emt 0:00:16]} Nf6 {[%emt 0:00:05]} 4. g3 {[%emt 0:00:21]} Bf5 {[%emt 0:00:05]} 5. Nc3 {[%emt 0:00:08]} e6 {[%emt 0:00:02]} 6. Nh4 {[%emt 0:00:11] D11: Slav Defence: 3 Nf3 sidelines and 3...Nf6 4 e3 Bg4.} Be4 {[%emt 0:00:05]} 7. f3 {[%emt 0:00:09]} Bg6 {[%emt 0:00:02]} 8. Qb3 {[%emt 0:00:10]} Qd7 {[%emt 0:00:06]} 9. Be3 {[%emt 0:03:34]} Be7 {[%emt 0:01:43]} 10. Bf2 {[%emt 0:01:57]} O-O {[%emt 0:06:33]} 11. Nxg6 {[%emt 0:01:09]} hxg6 {[%emt 0:00:02]} 12. Bh3 $146 {[%emt 0:00:28]} ({Predecessor:} 12. Bg2 Rc8 13. Rd1 Qc7 14. O-O Nbd7 15. Rc1 Qb6 16. Rfd1 Qa6 17. cxd5 cxd5 18. Bf1 {½-½ Cheparinov,I (2698)-Le,T (2475) Ho Chi Minh City HD Bank op 7th 2017 (6)}) 12... a5 {[%emt 0:03:49]} 13. O-O {[%emt 0:06:54]} a4 {[%emt 0:03:57]} 14. Nxa4 {[%emt 0:00:52]} dxc4 {[%emt 0:00:02]} 15. Qc2 {[%emt 0:01:00]} Qc7 {[%emt 0:01:12]} 16. Nc5 {[%emt 0:04:58]} b5 {[%emt 0:03:36]} 17. b3 {[%emt 0:14:44]} cxb3 {[%emt 0:18:17]} 18. axb3 {[%emt 1:00:26]} Nbd7 {[%emt 0:00:16]} 19. Nd3 {[%emt 0:00:00]} Nd5 {[%emt 0:07:12]} 20. Rfc1 {[%emt 0:00:00]} Ba3 {[%emt 0:04:11]} 21. Rd1 {[%emt 0:00:00]} Nb4 {[%emt 0:29:10]} 22. Nxb4 {[%emt 0:00:00]} Bxb4 {[%emt 0:00:02]} 23. e4 {[%emt 0:00:00]} Qb7 {[%emt 0:08:13]} 24. Bf1 {[%emt 0:00:00]} Rxa1 {[%emt 0:09:06]} 25. Rxa1 {[%emt 0:00:00]} Ra8 {[%emt 0:00:02]} 26. Rc1 {[%emt 0:00:00]} Rc8 {[%emt 0:02:39]} 27. Qd3 {[%emt 0:00:00]} Ra8 {[%emt 0:01:46]} 28. Qc2 {[%emt 0:00:00]} Rc8 {[%emt 0:00:02]} 29. Qe2 {[%emt 0:00:00]} Ra8 {[%emt 0:00:17]} 30. f4 {[%emt 0:00:00]} (30. Kg2 $14) 30... Ba3 {[%emt 0:00:25]} 31. Ra1 {[%emt 0:00:00]} Bf8 {[%emt 0:00:29]} 32. Rxa8 {[%emt 0:00:00]} Qxa8 {[%emt 0:00:01]} 33. Qc2 {[%emt 0:00:00]} Nf6 {[%emt 0:00:52]} 34. Be2 {[%emt 0:00:00]} Bb4 {[%emt 0:01:15]} 35. Kg2 {[%emt 0:00:00]} Qa6 {[%emt 0:01:10]} 36. Bf3 {[%emt 0:00:00]} Kh8 {[%emt 0:00:18]} 37. h4 {[%emt 0:00:00]} Ng8 {[%emt 0:00:33]} 38. h5 {[%emt 0:00:00]} gxh5 {[%emt 0:00:14]} 39. Bxh5 {[%emt 0:00:00]} g6 {[%emt 0:00:25]} 40. Bf3 {[%emt 0:00:00]} Ne7 {[%emt 0:00:04]} 41. Qe2 {[%emt 0:00:00]} Bc3 {[%emt 0:00:59]} 42. Qd3 {[%emt 0:00:00]} Qa1 {[%emt 0:00:37]} 43. d5 {[%emt 0:00:00]} cxd5 {[%emt 0:00:27]} 44. exd5 {[%emt 0:00:00]} exd5 {[%emt 0:00:15]} (44... Nxd5 $11 45. Bxd5 (45. Qxb5 Qb2 $11) 45... exd5) 45. Bxd5 {[%emt 0:00:00]} (45. Qe2 $14 Qa3 46. Qxb5) 45... Kg7 {[%emt 0:00:26]} 46. Qxb5 {[%emt 0:00:00]} Bd4 {[%emt 0:00:33]} 47. Bxd4+ $1 {[%emt 0:00:00]} Qxd4 {[%emt 0:00:02]} 48. Bf3 {[%emt 0:00:00]} Qd8 {[%emt 0:01:35]} 49. g4 {[%emt 0:00:00]} Qd2+ {[%emt 0:00:33]} 50. Qe2 {[%emt 0:00:00]} Qb4 {[%emt 0:00:25]} 51. Qe4 {[%emt 0:00:00]} Qd2+ {[%emt 0:00:28]} 52. Kg3 {[%emt 0:00:05]} Kf8 {[%emt 0:00:21]} 53. Qa8+ {[%emt 0:02:03]} Kg7 {[%emt 0:00:01]} 54. Qa1+ {[%emt 0:00:07]} f6 {[%emt 0:01:05]} 55. Qa7 {[%emt 0:02:53]} (55. Qd1 $1 $16 {[%cal Rd1d2]} Qb4 56. Qe2) 55... Kf7 $11 {[%emt 0:00:36]} 56. Qa6 {[%emt 0:01:38]} Qe1+ {[%emt 0:00:17]} 57. Kh3 {[%emt 0:00:10]} Qc3 {[%emt 0:00:37]} 58. Qc4+ {[%emt 0:01:26]} Qxc4 {[%emt 0:00:01]} 59. bxc4 {[%emt 0:00:07]} Ke6 {[%emt 0:00:04]} 60. c5 {[%emt 0:01:06]} g5 {[%emt 0:01:22]} 61. Kg3 {[%emt 0:01:26]} gxf4+ {[%emt 0:00:15]} (61... Kd7 $11) 62. Kxf4 $16 {[%emt 0:00:10]} Kd7 {[%emt 0:00:52]} 63. Kg3 {[%emt 0:01:12]} (63. Bb7 $16) 63... Ke6 $11 {[%emt 0:00:30]} 64. Kf4 {[%emt 0:01:07]} ({Better is} 64. Bb7 $11) 64... Kd7 $1 $16 {[%emt 0:00:15]} 65. Bb7 {[%emt 0:00:16]} Ke6 {[%emt 0:00:35]} 66. Be4 {[%emt 0:00:04]} Kd7 {[%emt 0:00:28]} 67. Kg3 {[%emt 0:02:58]} (67. Bg2 $16) 67... Ke6 $11 {[%emt 0:00:06]} 68. Bb7 {[%emt 0:01:44]} Kd7 {[%emt 0:00:16] [#]} (68... Ng6 $11 {remains equal.}) 69. Be4 {[%emt 0:02:16]} (69. Kf3 $1 $16) 69... Ke6 $11 {[%emt 0:00:08]} 70. Kf4 {[%emt 0:00:03]} (70. Bf3 $11) 70... Kd7 $16 {[%emt 0:00:07]} 71. Ke3 {[%emt 0:00:03]} Ke6 {[%emt 0:00:25]} 72. Kd4 {[%emt 0:00:06]} Kd7 {[%emt 0:00:06]} 73. Kc4 {[%emt 0:00:25]} Kc7 {[%emt 0:00:33]} 74. Kb5 {[%emt 0:00:10]} Nc8 {[%emt 0:00:20]} 75. Bg6 {[%emt 0:01:53]} Na7+ {[%emt 0:00:41] [#]} 76. Kc4 $1 {[%emt 0:00:07]} Nc6 {[%emt 0:00:02]} 77. Bf5 {[%emt 0:00:21]} Ne7 {[%emt 0:00:07]} 78. Be4 {[%emt 0:00:13]} Kd7 {[%emt 0:01:22]} 79. Kb5 {[%emt 0:00:06]} Kc7 {[%emt 0:00:22]} 80. c6 {[%emt 0:00:33]} ({White should play} 80. Ka4 $16) 80... Nc8 $11 {[%emt 0:00:20]} 81. Kc5 {[%emt 0:00:26]} Ne7 {[%emt 0:00:30]} 82. Kb5 {[%emt 0:02:03]} Nc8 {[%emt 0:00:08]} 83. Ka6 {[%emt 0:00:25]} Ne7 {[%emt 0:00:46]} 84. Kb5 {[%emt 0:00:07]} Nc8 {[%emt 0:00:12]} 85. Bf3 {[%emt 0:01:00]} Nd6+ {[%emt 0:00:51]} 86. Kc5 {[%emt 0:00:07]} Nf7 {[%emt 0:00:03]} 87. Kd5 {[%emt 0:00:33]} Nd8 {[%emt 0:01:16]} 1/2-1/2

[Event "Singapore Open-A 2024"]
[Site "Singapore"]
[Date "2024.11.30"]
[Round "3.2"]
[White "Tin, Jingyao"]
[Black "Seemann, Jakub"]
[Result "1/2-1/2"]
[ECO "E49"]
[WhiteElo "2588"]
[BlackElo "2491"]
[Annotator "RC"]
[PlyCount "99"]
[EventDate "2024.11.29"]
[EventType "swiss"]
[EventCountry "SIN"]
[SourceTitle "playchess.com"]
[Source "ChessBase"]
[SourceQuality "1"]
[TimeControl "5400+30"]

1. d4 {[%emt 0:06:23]} Nf6 {[%emt 0:00:08]} 2. c4 {[%emt 0:00:18]} e6 {[%emt 0:00:03]} 3. Nc3 {[%emt 0:00:15]} Bb4 {[%emt 0:00:04]} 4. e3 {[%emt 0:00:09]} O-O {[%emt 0:00:09]} 5. Bd3 {[%emt 0:00:06]} d5 {[%emt 0:00:04]} 6. a3 {[%emt 0:00:30]} Bxc3+ {[%emt 0:00:05]} 7. bxc3 {[%emt 0:00:06]} dxc4 {[%emt 0:01:59]} 8. Bxc4 {[%emt 0:00:09]} c5 {[%emt 0:00:01]} 9. Ne2 {[%emt 0:00:17]} Qc7 {[%emt 0:00:04]} 10. Ba2 {[%emt 0:00:13]} b6 {[%emt 0:01:49]} 11. O-O {[%emt 0:00:11]} Ba6 {[%emt 0:00:31]} 12. Re1 {[%emt 0:00:08]} Rd8 {[%emt 0:02:36]} 13. Ng3 {[%emt 0:00:10]} Nc6 {[%emt 0:03:52]} 14. Rb1 {[%emt 0:00:05]} Rac8 {[%emt 0:06:27]} 15. Rb2 {[%emt 0:00:24]} e5 {[%emt 0:20:01]} 16. d5 {[%emt 0:02:16]} e4 {[%emt 0:00:48]} 17. Qa4 {[%emt 0:02:54]} Na5 {[%emt 0:00:08]} 18. c4 {[%emt 0:01:36]} h5 {[%emt 0:03:00]} 19. f4 {[%emt 0:16:21]} h4 {[%emt 0:09:28]} 20. Nf5 {[%emt 0:12:27]} Qd7 {[%emt 0:01:08]} 21. Qxd7 {[%emt 0:00:23]} Rxd7 {[%emt 0:00:03]} 22. Rc2 {[%emt 0:00:44]} b5 {[%emt 0:02:17]} 23. d6 {[%emt 0:06:58]} b4 {[%emt 0:12:56]} 24. axb4 {[%emt 0:13:57]} cxb4 {[%emt 0:00:01]} 25. Ne7+ {[%emt 0:02:35]} Rxe7 {[%emt 0:00:31]} 26. dxe7 {[%emt 0:00:04]} b3 {[%emt 0:08:44]} 27. Bxb3 {[%emt 0:03:12]} Nxb3 {[%emt 0:00:11]} 28. Rd1 {[%emt 0:00:19]} Re8 {[%emt 0:13:01]} 29. Rd8 {[%emt 0:22:21]} Kh7 {[%emt 0:00:02]} 30. Rxe8 {[%emt 0:00:34]} Nxe8 {[%emt 0:00:03]} 31. c5 {[%emt 0:00:09]} Nxc1 {[%emt 0:05:30]} 32. Rxc1 {[%emt 0:00:14]} Kg6 {[%emt 0:00:05]} 33. Ra1 {[%emt 0:02:25]} Bb5 {[%emt 0:02:06]} 34. Rxa7 {[%emt 0:00:17]} Kf6 {[%emt 0:03:42]} 35. Rb7 {[%emt 0:02:35]} Ba4 {[%emt 0:00:01]} 36. Rb4 {[%emt 0:01:39]} Bd7 {[%emt 0:00:19]} 37. Rxe4 {[%emt 0:02:42]} g6 {[%emt 0:01:13]} 38. Re5 {[%emt 0:00:32]} Be6 {[%emt 0:00:16]} 39. e4 {[%emt 0:00:25]} Kxe7 {[%emt 0:00:17]} 40. c6 {[%emt 0:02:12]} Kd6 {[%emt 0:00:50]} 41. h3 {[%emt 0:01:45]} Kxc6 {[%emt 0:01:08]} 42. f5 {[%emt 0:00:00]} gxf5 {[%emt 0:00:20]} 43. exf5 {[%emt 0:00:00]} Bd7 {[%emt 0:00:03]} 44. Re4 {[%emt 0:00:43]} Kd6 {[%emt 0:00:06]} 45. Kf2 {[%emt 0:00:30]} Nf6 {[%emt 0:00:07]} 46. Rxh4 {[%emt 0:00:07]} Bxf5 {[%emt 0:00:05]} 47. Kf3 {[%emt 0:00:29]} Ke5 {[%emt 0:00:08]} 48. Ra4 {[%emt 0:00:30]} Be4+ {[%emt 0:00:16]} 49. Kf2 {[%emt 0:00:07]} Nd5 {[%emt 0:00:12]} 50. g3 {[%emt 0:01:13]} 1/2-1/2

[Event "Singapore Open-A 2024"]
[Site "Singapore"]
[Date "2024.11.30"]
[Round "3.3"]
[White "Sethuraman, S.P."]
[Black "Ilamparthi A R"]
[Result "1/2-1/2"]
[ECO "C70"]
[WhiteElo "2586"]
[BlackElo "2457"]
[Annotator "TA"]
[PlyCount "53"]
[EventDate "2024.11.29"]
[EventType "swiss"]
[EventCountry "SIN"]
[SourceTitle "playchess.com"]
[Source "ChessBase"]
[SourceQuality "1"]
[TimeControl "5400+30"]

{[%evp 9,53,12,24,25,35,27,32,36,36,34,37,33,44,36,64,43,63,0,0,0,0,0,0,0,0,0,0,0,0,0,0,0,0,0,0,0,0,0,0,0,0,0,0,0,0,0]} 1. e4 {[%emt 0:01:01]} e5 {[%emt 0:01:46]} 2. Nf3 {[%emt 0:00:04]} Nc6 {[%emt 0:00:07]} 3. Bb5 {[%emt 0:00:27][%cal Bf1b5,Bb5a4,Ba4b3,Bb3c2,Bc2e4][%mdl 32]} a6 {[%emt 0:00:09]} 4. Ba4 {[%emt 0:00:08]} Nge7 {[%emt 0:00:07]} 5. Bb3 {[%emt 0:10:04]} Ng6 {[%emt 0:10:32]} 6. c3 {[%emt 0:00:46]} Na5 {[%emt 0:05:54]} 7. Bc2 {[%emt 0:14:09]} d5 {[%emt 0:00:59]} 8. d4 {[%emt 0:00:07] White is slightly better.} dxe4 {[%emt 0:15:04]} 9. Bxe4 {[%emt 0:00:06]} f5 {[%emt 0:00:09]} 10. Bc2 {[%emt 0:01:49]} e4 {[%emt 0:00:18]} 11. Ng5 {[%emt 0:00:08]} Qf6 {[%emt 0:00:04]} 12. Qh5 {[%emt 0:05:48][%cal Oe1g1] Strongly threatening 0-0!} Bd7 {[%emt 0:02:55] [#]} 13. Nxe4 $1 {[%emt 0:48:23] White is more active.} fxe4 $11 {[%emt 0:00:03] The position is equal.} 14. Qxa5 {[%emt 0:00:04][%cal Oc1g5]} Bb5 $1 {[%emt 0:02:11]} 15. Ba4 $1 {[%emt 0:07:08]} (15. Bxe4 $2 Qe6 (15... b6 16. Qxb5+ axb5 17. Bxa8 $15) 16. Nd2 b6 $19) 15... c6 {[%emt 0:00:13] ...Nh4 would now be deadly.} 16. Bxb5 {[%emt 0:00:34]} cxb5 {[%emt 0:00:03]} 17. Qc7 {[%emt 0:00:14]} Bd6 {[%emt 0:04:46]} 18. Qxb7 {[%emt 0:00:03]} O-O {[%emt 0:00:10]} 19. O-O {[%emt 0:00:41]} (19. Qxe4 $2 Rae8 $19 (19... Qxf2+ $2 20. Kd1 $19) (19... Qxf2+ $2 20. Kd1 $19)) 19... Bf4 {[%emt 0:13:22] Threatens to win with ...Bxc1.} 20. Nd2 {[%emt 0:02:52]} (20. Qxe4 $2 {too greedy.} Bxc1 21. Qc2 Nf4 $19) 20... Bxh2+ $1 {[%emt 0:11:56]} 21. Kxh2 {[%emt 0:01:45]} Nf4 {[%emt 0:05:36]} 22. g3 {[%emt 0:00:27] Inhibits Qh4+.} (22. Qxe4 Rae8 23. g3 (23. Qf3 $2 Qh4+ 24. Kg1 Ne2+ $19) 23... Qh6+ (23... Rxe4 $2 24. Nxe4 Qh6+ 25. Kg1 $19) 24. Kg1 Rxe4 25. Nxe4 Ne2+ 26. Kg2 Qg6 $17) 22... Qh6+ {[%emt 0:14:52]} 23. Kg1 {[%emt 0:00:02]} Nh3+ {[%emt 0:00:09]} 24. Kg2 {[%emt 0:00:26]} Nf4+ {[%emt 0:00:18]} 25. Kg1 {[%emt 0:02:01]} Nh3+ {[%emt 0:00:10]} 26. Kg2 {[%emt 0:00:03]} Nf4+ {[%emt 0:00:12]} 27. Kg1 {[%emt 0:00:04] Weighted Error Value: White=0.06 (flawless) /Black=0.02 (flawless) .  Mistake:       	White=1     	---        Inaccurate:     	---       	Black=1      OK:         	White=10    	Black=8      Best:        	White=4     	Black=4      Strong:       	White=1     	Black=2} 1/2-1/2

[Event "Singapore Open-A 2024"]
[Site "Singapore"]
[Date "2024.11.30"]
[Round "3.4"]
[White "Bilguun, Sumiya"]
[Black "Jumabayev, Rinat"]
[Result "1/2-1/2"]
[ECO "B47"]
[WhiteElo "2470"]
[BlackElo "2571"]
[Annotator "TA"]
[PlyCount "81"]
[EventDate "2024.11.29"]
[EventType "swiss"]
[EventCountry "SIN"]
[SourceTitle "playchess.com"]
[Source "ChessBase"]
[SourceQuality "1"]
[TimeControl "5400+30"]

{[%evp 24,81,52,47,60,68,65,62,72,57,52,60,78,71,75,66,77,27,29,39,81,30,19,19,64,70,70,70,72,8,70,51,60,0,52,47,47,48,67,67,67,67,74,68,91,72,75,74,103,106,95,55,86,77,83,97,287,304,240,0]} 1. e4 {[%emt 1:31:00]} c5 {[%emt 0:07:13]} 2. Nc3 {[%emt 0:00:00]} e6 {[%emt 0:02:34]} 3. Nf3 {[%emt 0:00:00]} a6 {[%emt 0:00:28]} 4. d4 {[%emt 0:00:00]} cxd4 {[%emt 0:00:04]} 5. Nxd4 {[%emt 0:00:00]} Qc7 {[%emt 0:01:40]} 6. g3 {[%emt 0:00:00]} Nf6 {[%emt 0:25:50]} 7. Bg2 {[%emt 0:00:00]} Nc6 {[%emt 0:01:06]} 8. O-O {[%emt 0:00:00]} Nxd4 {[%emt 0:00:54]} 9. Qxd4 {[%emt 0:00:00]} Bc5 {[%emt 0:00:03]} 10. Bf4 {[%emt 0:00:00]} d6 {[%emt 0:00:05]} 11. Qd2 {[%emt 0:00:00]} h6 {[%emt 0:00:47]} 12. Rad1 {[%emt 0:00:00]} e5 {[%emt 0:00:06]} 13. Be3 {[%emt 0:00:00]} Bxe3 {[%emt 0:00:13]} 14. fxe3 {[%emt 0:00:00]} Be6 {[%emt 0:00:05]} 15. Qxd6 {[%emt 0:00:00]} Rc8 {[%emt 0:10:27] White is slightly better.} 16. Rf2 {[%emt 0:00:00] White is more active.} Qxd6 {[%emt 0:07:05]} 17. Rxd6 {[%emt 0:00:00]} Rxc3 {[%emt 0:09:53]} 18. bxc3 {[%emt 0:00:00]} Nd7 {[%emt 0:00:16][%cal Oe8e7] Repels Rb6} 19. Rfd2 {[%emt 0:00:00] Strongly threatening Bf1.} Ke7 {[%emt 0:00:24]} 20. Kf2 {[%emt 0:00:00]} (20. c4 $16) 20... h5 {[%emt 0:08:44] [#]} 21. c4 $1 {[%emt 0:00:00]} g6 {[%emt 0:04:58][%cal Oh8c8] [#]} (21... Rc8 22. Rxd7+) 22. c5 {[%emt 0:00:00]} Nxc5 $11 {[%emt 0:00:26]} 23. Rb6 {[%emt 0:00:00][%cal Oa2a4]} Rc8 {[%emt 0:02:56] [#]} 24. a4 $1 {[%emt 0:00:00][%cal Ba2a4,Ba4a5][%mdl 32]} Bd7 {[%emt 0:06:56]} 25. a5 $1 {[%emt 0:00:00]} Bb5 {[%emt 0:01:53]} 26. Rd5 {[%emt 0:02:58]} ({White should play} 26. Kg1 $16) 26... f6 {[%emt 0:00:05]} (26... Nd7 $1 $11 27. Rdxb5 (27. Rxb7 Rxc2+ 28. Kg1 Rc1+ 29. Kf2 Rc2+ 30. Kg1 Rc1+ 31. Kf2 Rc2+ $11) 27... Rxc2+ 28. Kf3 axb5 29. Rxb7 f5) 27. Ke1 {[%emt 0:02:39]} Rc7 $1 {[%emt 0:08:06]} 28. Kd2 {[%emt 0:02:45]} ({White should try} 28. Bh3 $14) 28... Na4 {[%emt 0:00:40]} (28... g5 $11) 29. Rbxb5 $14 {[%emt 0:02:32]} axb5 {[%emt 0:00:02]} 30. Rxb5 {[%emt 0:00:25][%mdl 4096] Endgame. KRB-KRN} Rd7+ {[%emt 0:01:00]} 31. Ke1 $1 {[%emt 0:00:23]} Rc7 {[%emt 0:00:26]} 32. Bf1 {[%emt 0:01:08]} Nc5 {[%emt 0:00:34]} 33. Bd3 {[%emt 0:01:35]} Kd6 {[%emt 0:00:11]} 34. Kd2 {[%emt 0:00:40]} Rc6 {[%emt 0:00:12]} 35. Rb4 {[%emt 0:01:55]} Kc7 {[%emt 0:00:57]} 36. Bb5 {[%emt 0:00:00]} Rd6+ {[%emt 0:00:12]} 37. Ke2 {[%emt 0:00:01] Black must now prevent Rc4.} Rd8 {[%emt 0:00:39]} 38. Bd3 {[%emt 0:00:40]} Rd6 {[%emt 0:00:37]} 39. Rb5 {[%emt 0:00:36]} Kc6 {[%emt 0:00:40] [#]} (39... Rc6 $16) 40. Rb6+ $1 $18 {[%emt 0:00:26]} Kc7 {[%emt 0:00:01]} 41. Rb5 $2 {[%emt 0:00:29] Weighted Error Value: White=0.14 (very precise) /Black=0.21 (precise) .  Loses game:     	---       	Black=1      Missed win:     	White=1     	---        Mistake:       	White=4     	Black=2      Inaccurate:     	White=1     	Black=4      OK:         	White=7     	Black=7      Best:        	White=1     	Black=3      Strong:       	White=3     	Black=1} (41. Rxd6 $18 Kxd6 42. Bc4) 1/2-1/2

[Event "Singapore Open-A 2024"]
[Site "Singapore"]
[Date "2024.11.30"]
[Round "3.5"]
[White "Sanal, Vahap"]
[Black "Gong, Qianyun"]
[Result "1-0"]
[ECO "C06"]
[WhiteElo "2561"]
[BlackElo "2268"]
[Annotator "TA"]
[PlyCount "127"]
[EventDate "2024.11.29"]
[EventType "swiss"]
[EventCountry "SIN"]
[SourceTitle "playchess.com"]
[Source "ChessBase"]
[SourceQuality "1"]
[TimeControl "5400+30"]

{[%evp 26,127,85,85,90,87,175,150,175,163,167,183,180,186,277,247,294,257,286,263,273,289,339,352,305,285,290,276,254,225,251,237,385,314,285,332,317,313,306,298,315,32,41,0,75,79,76,80,74,83,81,72,74,77,76,43,80,56,45,43,136,148,181,112,114,0,184,184,190,191,218,218,275,271,272,242,266,66,81,0,8,0,107,83,133,102,106,33,268,206,189,180,206,200,178,98,767,742,789,785,2310,2335,1770,1614]} 1. e4 {[%emt 0:00:22]} e6 {[%emt 0:00:06]} 2. d4 {[%emt 0:00:10]} d5 {[%emt 0:00:07]} 3. Nd2 {[%emt 0:00:06]} Be7 {[%emt 0:00:34]} 4. Ngf3 {[%emt 0:01:51]} Nf6 {[%emt 0:00:14]} 5. e5 {[%emt 0:01:46]} Nfd7 {[%emt 0:00:05]} 6. Bd3 {[%emt 0:00:35]} c5 {[%emt 0:00:08]} 7. c3 {[%emt 0:00:04]} Nc6 {[%emt 0:00:08]} 8. O-O {[%emt 0:02:59]} O-O {[%emt 0:00:35]} 9. Re1 {[%emt 0:00:07]} f6 {[%emt 0:00:07]} 10. exf6 {[%emt 0:00:06]} Nxf6 {[%emt 0:00:04]} 11. h3 {[%emt 0:00:09]} Qb6 {[%emt 0:19:58]} 12. a3 {[%emt 0:00:14]} cxd4 {[%emt 0:07:53]} 13. c4 {[%emt 0:00:15]} Qc7 {[%emt 0:13:42]} 14. b4 {[%emt 0:04:20]} Bd6 {[%emt 0:06:11]} 15. Bb2 {[%emt 0:05:48]} dxc4 {[%emt 0:10:51]} (15... Bd7 $16 {was worth a try.}) 16. Nxc4 $18 {[%emt 0:07:57]} (16. Bxc4 Kh8 $16) 16... Bf4 {[%emt 0:12:48]} 17. b5 {[%emt 0:01:32]} (17. Bxd4 $6 Nxd4 18. Nxd4 Rd8 $14) 17... Ne7 {[%emt 0:02:18]} 18. Bxd4 {[%emt 0:01:43]} Ned5 {[%emt 0:07:12]} 19. Ra2 {[%emt 0:09:02]} Rd8 {[%emt 0:08:15]} (19... Qe7 {was necessary.} 20. Nce5 a6 21. bxa6 bxa6) 20. g3 $18 {[%emt 0:02:56]} Bh6 {[%emt 0:03:51]} 21. Rc2 {[%emt 0:01:53]} Qe7 {[%emt 0:00:28]} 22. Qe2 {[%emt 0:04:42]} Bd7 {[%emt 0:02:27]} 23. Nce5 {[%emt 0:00:19]} Re8 {[%emt 0:01:14]} 24. Bc5 {[%emt 0:02:16]} Qd8 {[%emt 0:00:03]} 25. a4 {[%emt 0:00:18]} Rc8 {[%emt 0:02:03]} 26. Ra1 {[%emt 0:10:06]} b6 {[%emt 0:00:59]} 27. Ba3 {[%emt 0:00:10]} Nc3 {[%emt 0:00:30]} 28. Qe1 {[%emt 0:00:18]} Nxa4 {[%emt 0:00:36]} (28... Ncd5 $142 29. Bc4 g6) 29. Bb4 {[%emt 0:02:35]} Rxc2 {[%emt 0:00:53]} 30. Bxc2 {[%emt 0:00:03]} Nc5 {[%emt 0:00:14]} 31. Rxa7 {[%emt 0:00:46]} Bxb5 {[%emt 0:00:36]} 32. Nf7 {[%emt 0:00:08]} Qd5 {[%emt 0:00:24]} 33. Qc3 $2 {[%emt 0:00:31]} (33. Nxh6+ $18 gxh6 34. Qe3 (34. Ne5 Ra8 $16)) 33... Bc1 $14 {[%emt 0:00:49]} 34. Ba3 {[%emt 0:03:09]} Bc6 {[%emt 0:00:19]} (34... Bxa3 $2 35. Nh6+ Kh8 36. Qxf6 $18 (36. Rxa3 Rf8 $17)) (34... Rf8 $11) 35. Bxc1 $16 {[%emt 0:01:53]} Qxf3 {[%emt 0:00:02]} 36. Bxh7+ $1 {[%emt 0:00:23]} ({Much worse is} 36. Qxf3 $6 Bxf3 37. Ba3 Bd5 $15) 36... Kf8 {[%emt 0:00:34]} ({Stronger than} 36... Nxh7 37. Nh6+ gxh6 38. Qg7#) 37. Qxf3 {[%emt 0:00:49]} Bxf3 {[%emt 0:00:02]} 38. Ne5 {[%emt 0:02:38]} Nxh7 {[%emt 0:00:34]} 39. Nxf3 {[%emt 0:03:03]} Re7 {[%emt 0:00:26]} 40. Ra3 {[%emt 0:00:28]} e5 {[%emt 0:00:44]} 41. Bb2 {[%emt 0:00:27]} e4 {[%emt 0:00:29]} 42. Ne5 {[%emt 0:00:23]} Re6 {[%emt 0:01:05]} (42... Rc7 $14) 43. Ra8+ $16 {[%emt 0:01:18]} Ke7 {[%emt 0:00:19]} 44. Ra7+ {[%emt 0:00:12]} ({White should play} 44. Rg8 $18 Nf6 45. Rxg7+ Ke8 46. Ra7) 44... Kf8 $16 {[%emt 0:00:20]} 45. Ra8+ {[%emt 0:01:54]} (45. Kf1 $16) 45... Ke7 $18 {[%emt 0:00:04]} 46. Rg8 {[%emt 0:00:17]} Nf6 {[%emt 0:01:06]} 47. Rxg7+ {[%emt 0:00:10]} Ke8 {[%emt 0:00:08]} 48. Ra7 {[%emt 0:01:04]} Nd5 {[%emt 0:00:51]} 49. h4 {[%emt 0:00:49]} Nd3 {[%emt 0:00:39]} 50. Ra8+ {[%emt 0:00:17]} Ke7 {[%emt 0:00:07]} 51. Ba3+ $2 {[%emt 0:00:23]} ({White must play} 51. Nxd3 $1 $18 exd3 52. Kf1) 51... Kf6 $14 {[%emt 0:00:20] [#]} 52. Nd7+ {[%emt 0:01:03]} ({White should try} 52. Nxd3 $1 $16 exd3 53. Kf1) 52... Kf5 $11 {[%emt 0:00:38]} 53. Kg2 {[%emt 0:01:28]} Rg6 {[%emt 0:00:20]} (53... Rc6 $11 {keeps the balance.}) 54. Rh8 {[%emt 0:06:22]} N5f4+ {[%emt 0:01:20]} (54... e3 $142 55. fxe3 Rg7) 55. Kf1 $16 {[%emt 0:00:20]} Nh3 {[%emt 0:00:32] [#]} 56. h5 {[%emt 0:01:17]} ({Better is} 56. Rh5+ $1 $16 Kg4 57. Re5) 56... Rc6 $2 {[%emt 0:01:08]} (56... Rg7 $1 $14 57. Rf8+ (57. Nxb6 Nhxf2 58. Kg2 Ng4 $11) 57... Ke6) 57. Rf8+ {[%emt 0:04:45]} Ke6 {[%emt 0:00:00]} 58. h6 {[%emt 0:02:33]} Ng5 {[%emt 0:00:00]} 59. Nf6 {[%emt 0:00:06]} Rc7 {[%emt 0:00:24]} 60. Nh5 {[%emt 0:01:19]} (60. Ng4 $18 {aiming for Rf6+.} Rf7 61. Rg8) 60... Ra7 $2 {[%emt 0:00:18][%mdl 8192]} (60... Rf7 $16) 61. Ng7+ $18 {[%emt 0:02:37]} Kd7 {[%emt 0:00:36]} 62. h7 {[%emt 0:00:34]} Rxa3 {[%emt 0:00:10]} 63. h8=Q {[%emt 0:00:11]} ({Not} 63. h8=R Nf3 64. Ke2 Nc1+ 65. Kd1 Nd3 $14) 63... Ra1+ {[%emt 0:00:55]} 64. Ke2 {[%emt 0:00:06]} 1-0